fUST/lending_fUST_20250409
["ID","MTS","AMOUNT","RATE_DAILY","PERIOD"]
[357570129,1744181444021,-501.72332487,0.00019372,2]
[357570130,1744181444031,-500.0,0.00019372,2]
[357570131,1744181444040,-500.0,0.00019372,2]
[357570132,1744181444050,-500.0,0.00019372,2]
[357570133,1744181444060,-500.0,0.00019372,2]
[357570134,1744181444069,-500.0,0.00019372,2]
[357570135,1744181444079,-500.0,0.00019372,2]
[357570136,1744181444089,-502.03064351,0.00019372,2]
[357570137,1744181444099,-503.54779246,0.00019372,2]
[357570138,1744181444113,-500.0,0.00019372,2]
[357570139,1744181444123,-500.0,0.00019372,2]
[357570140,1744181444133,-514.53535117,0.00019372,2]
[357570141,1744181444144,-500.0,0.00019372,2]
[357570142,1744181444154,-500.0,0.00019372,2]
[357570143,1744181444164,-557.13355714,0.00019372,2]
[357570144,1744181444173,-500.0,0.00019372,2]
[357570145,1744181444186,-500.0,0.00019372,2]
[357570146,1744181444196,-500.0,0.00019372,2]
[357570147,1744181444206,-200.0,0.00019372,2]
[357570148,1744181444216,-503.21975782,0.00019372,2]
[357570149,1744181444225,-500.0,0.00019372,2]
[357570150,1744181444235,-500.0,0.00019372,2]
[357570151,1744181444244,-500.0,0.00019372,2]
[357570152,1744181444254,-219.45950161,0.00019372,2]
[357570153,1744181444263,-500.0,0.00019372,2]
[357570154,1744181444273,-509.80249715,0.00019372,2]
[357570155,1744181444283,-500.0,0.00019372,2]
[357570156,1744181444292,-502.91564017,0.00019372,2]
[357570157,1744181444301,-502.35772639,0.00019372,2]
[357570158,1744181444311,-500.0,0.00019372,2]
[357570159,1744181444320,-504.81853171,0.00019372,2]
[357570160,1744181444330,-505.26461588,0.00019372,2]
[357570161,1744181444340,-500.0,0.00019372,2]
[357570162,1744181444349,-500.0,0.00019372,2]
[357570163,1744181444359,-500.0,0.00019372,2]
[357570164,1744181444369,-500.0,0.00019372,2]
[357570165,1744181444380,-500.0,0.00019372,2]
[357570166,1744181444389,-500.0,0.00019372,2]
[357570167,1744181444399,-503.84645088,0.00019372,2]
[357570168,1744181444409,-504.38334105,0.00019372,2]
[357570169,1744181444419,-500.0,0.00019372,2]
[357570170,1744181444429,-503.28418818,0.00019372,2]
[357570171,1744181444439,-535.18868231,0.00019372,2]
[357570172,1744181444448,-502.79945152,0.00019372,2]
[357570173,1744181444458,-500.0,0.00019372,2]
[357570174,1744181444468,-504.7106218,0.00019372,2]
[357570175,1744181444478,-513.27270919,0.00019372,2]
[357570176,1744181444487,-500.0,0.00019372,2]
[357570177,1744181444496,-500.0,0.00019372,2]
[357570178,1744181444506,-518.24334687,0.00019372,2]
[357570179,1744181444515,-500.0,0.00019372,2]
[357570180,1744181444525,-321.21040871,0.00019372,2]
[357570181,1744181444535,-568.15118459,0.00019372,2]
[357570182,1744181444544,-502.48854623,0.00019372,2]
[357570183,1744181444554,-500.0,0.00019372,2]
[357570184,1744181444564,-500.0,0.00019372,2]
[357570185,1744181444574,-501.81388681,0.00019372,2]
[357570186,1744181444584,-504.63762537,0.00019372,2]
[357570187,1744181444594,-502.82191146,0.00019372,2]
[357570188,1744181444603,-500.0,0.00019372,2]
[357570189,1744181444613,-500.0,0.00019372,2]
[357570190,1744181444622,-500.0,0.00019372,2]
[357570191,1744181444632,-500.0,0.00019372,2]
[357570192,1744181444642,-540.65379326,0.00019372,2]
[357570193,1744181444652,-500.0,0.00019372,2]
[357570194,1744181444661,-500.0,0.00019372,2]
[357570195,1744181444671,-545.20389367,0.00019372,2]
[357570196,1744181444681,-500.0,0.00019372,2]
[357570197,1744181444690,-528.1474469,0.00019372,2]
[357570198,1744181444700,-500.0,0.00019372,2]
[357570199,1744181444710,-500.0,0.00019372,2]
[357570200,1744181444719,-500.0,0.00019372,2]
[357570201,1744181444729,-503.24866825,0.00019372,2]
[357570202,1744181444739,-510.52512931,0.00019372,2]
[357570203,1744181444749,-500.0,0.00019372,2]
[357570204,1744181444758,-575.72084437,0.00019372,2]
[357570205,1744181444768,-510.57976726,0.00019372,2]
[357570206,1744181444778,-362.55945355,0.00019372,2]
[357570207,1744181444788,-500.0,0.00019372,2]
[357570208,1744181444798,-500.0,0.00019372,2]
[357570209,1744181444807,-505.65271825,0.00019372,2]
[357570210,1744181444817,-500.0,0.00019372,2]
[357570211,1744181444827,-508.50647866,0.00019372,2]
[357570212,1744181444836,-500.0,0.00019372,2]
[357570213,1744181444846,-500.0,0.00019372,2]
[357570214,1744181444855,-500.0,0.00019372,2]
[357570215,1744181444865,-528.03135316,0.00019372,2]
[357570216,1744181444874,-539.62390711,0.00019372,2]
[357570217,1744181444884,-458.47461564,0.00019372,2]
[357570218,1744181444893,-511.34321929,0.00019372,2]
[357570219,1744181444977,-512.6593185,0.00019372,2]
[357570220,1744181444988,-302.28497273,0.00019372,2]
[357570221,1744181444998,-509.28782405,0.00019372,2]
[357570222,1744181445007,-511.29476271,0.00019372,2]
[357570223,1744181445017,-500.0,0.00019372,2]
[357570224,1744181445027,-500.0,0.00019372,2]
[357570225,1744181445036,-500.0,0.00019372,2]
[357570226,1744181445046,-500.0,0.00019372,2]
[357570227,1744181445055,-500.0,0.00019372,2]
[357570228,1744181445065,-423.53427845,0.00019372,2]
[357570229,1744181445075,-436.83503283,0.00019372,2]
[357570230,1744181445085,-500.0,0.00019372,2]
[357570231,1744181445097,-500.0,0.00019372,2]
[357570232,1744181445107,-500.0,0.00019372,2]
[357570233,1744181445118,-500.0,0.00019372,2]
[357570234,1744181445128,-263.88396558,0.00019372,2]
[357570235,1744181445139,-517.38026623,0.00019372,2]
[357570236,1744181445149,-500.0,0.00019372,2]
[357570237,1744181445158,-157.55186577,0.00019372,2]
[357570238,1744181445174,-503.5,0.00019372,2]
[357570239,1744181445184,-500.0,0.00019372,2]
[357570240,1744181445195,-593.02,0.00019372,2]
[357570241,1744181445205,-500.0,0.00019372,2]
[357570242,1744181445216,-500.0,0.00019372,2]
[357570243,1744181445226,-502.07760176,0.00019372,2]
[357570244,1744181445235,-500.0,0.00019372,2]
[357570245,1744181445245,-500.0,0.00019372,2]
[357570246,1744181445255,-500.0,0.00019372,2]
[357570247,1744181445264,-424.87904133,0.00019372,2]
[357570248,1744181445274,-506.61062867,0.00019372,2]
[357570249,1744181445283,-500.0,0.00019372,2]
[357570250,1744181445293,-500.0,0.00019372,2]
[357570251,1744181445303,-500.0,0.00019372,2]
[357570252,1744181445312,-500.0,0.00019372,2]
[357570253,1744181445322,-511.71405436,0.00019372,2]
[357570254,1744181445331,-500.0,0.00019372,2]
[357570255,1744181445341,-500.0,0.00019372,2]
[357570256,1744181445350,-500.0,0.00019372,2]
[357570257,1744181445359,-500.0,0.00019372,2]
[357570258,1744181445369,-500.0,0.00019372,2]
[357570259,1744181445379,-500.0,0.00019372,2]
[357570260,1744181445388,-158.56252331,0.00019372,2]
[357570261,1744181445398,-500.0,0.00019372,2]
[357570262,1744181445407,-500.0,0.00019372,2]
[357570263,1744181445420,-500.0,0.00019372,2]
[357570264,1744181445429,-1000.0,0.00019372,2]
[357570265,1744181445439,-504.20143863,0.00019372,2]
[357570266,1744181445448,-500.0,0.00019372,2]
[357570267,1744181445457,-500.0,0.00019372,2]
[357570268,1744181445467,-500.0,0.00019372,2]
[357570269,1744181445476,-500.0,0.00019372,2]
[357570270,1744181445486,-500.0,0.00019372,2]
[357570271,1744181445495,-500.0,0.00019372,2]
[357570272,1744181445505,-555.37727419,0.00019372,2]
[357570273,1744181445515,-524.70351855,0.00019372,2]
[357570274,1744181445524,-535.56406462,0.00019372,2]
[357570275,1744181445533,-500.0,0.00019372,2]
[357570276,1744181445543,-506.57297432,0.00019372,2]
[357570277,1744181445552,-500.0,0.00019372,2]
[357570278,1744181445562,-504.15146542,0.00019372,2]
[357570279,1744181445572,-636.75999258,0.00019372,2]
[357570280,1744181445581,-500.0,0.00019372,2]
[357570281,1744181445591,-500.0,0.00019372,2]
[357570282,1744181445600,-525.85563749,0.00019372,2]
[357570283,1744181445610,-1177.14,0.00019372,2]
[357570284,1744181445619,-500.0,0.00019372,2]
[357570285,1744181445629,-500.0,0.00019372,2]
[357570286,1744181445639,-500.0,0.00019372,2]
[357570287,1744181445649,-500.0,0.00019372,2]
[357570288,1744181445659,-500.0,0.00019372,2]
[357570289,1744181445672,-500.0,0.00019372,2]
[357570290,1744181445682,-500.0,0.00019372,2]
[357570291,1744181445692,-509.97653604,0.00019372,2]
[357570292,1744181445701,-500.0,0.00019372,2]
[357570293,1744181445711,-500.0,0.00019372,2]
[357570294,1744181445721,-511.43899077,0.00019372,2]
[357570295,1744181445731,-537.74664856,0.00019372,2]
[357570296,1744181445742,-529.57413122,0.00019372,2]
[357570297,1744181445752,-500.0,0.00019372,2]
[357570298,1744181445762,-500.0,0.00019372,2]
[357570299,1744181445773,-500.0,0.00019372,2]
[357570300,1744181445782,-500.0,0.00019372,2]
[357570301,1744181445792,-528.43504568,0.00019372,2]
[357570302,1744181445801,-1446.218721,0.00019372,2]
[357570303,1744181445811,-1446.218721,0.00019372,2]
[357570304,1744181445821,-500.0,0.00019372,2]
[357570305,1744181445831,-1446.218721,0.00019372,2]
[357570306,1744181445840,-1446.218723,0.00019372,2]
[357570307,1744181445850,-519.95513228,0.00019372,2]
[357570308,1744181445859,-549.18901547,0.00019372,2]
[357570309,1744181445868,-507.73088639,0.00019372,2]
[357570310,1744181445878,-500.0,0.00019372,2]
[357570311,1744181445888,-500.0,0.00019372,2]
[357570312,1744181445897,-500.0,0.00019372,2]
[357570313,1744181445907,-537.43126305,0.00019372,2]
[357570314,1744181445917,-500.0,0.00019372,2]
[357570315,1744181445927,-500.0,0.00019372,2]
[357570316,1744181445936,-500.0,0.00019372,2]
[357570317,1744181445946,-500.0,0.00019372,2]
[357570318,1744181445956,-517.63352974,0.00019372,2]
[357570319,1744181445965,-610.65839085,0.00019372,2]
[357570320,1744181445975,-500.0,0.00019372,2]
[357570321,1744181445985,-366.53991858,0.00019372,2]
[357570322,1744181445994,-500.0,0.00019372,2]
[357570323,1744181446004,-180.38054349,0.00019372,2]
[357570324,1744181446013,-500.0,0.00019372,2]
[357570325,1744181446023,-992.89,0.00019372,2]
[357570326,1744181446032,-507.1395128,0.00019372,2]
[357570327,1744181446042,-500.0,0.00019372,2]
[357570328,1744181446052,-510.12828112,0.00019372,2]
[357570329,1744181446062,-527.91673905,0.00019372,2]
[357570330,1744181446071,-470.33018338,0.00019372,2]
[357570331,1744181446081,-500.0,0.00019372,2]
[357570332,1744181446090,-500.0,0.00019372,2]
[357570333,1744181446103,-500.0,0.00019372,2]
[357570334,1744181446114,-500.0,0.00019372,2]
[357570335,1744181446123,-500.0,0.00019372,2]
[357570336,1744181446132,-500.0,0.00019372,2]
[357570337,1744181446142,-519.1863636,0.00019372,2]
[357570338,1744181446153,-530.57246388,0.00019372,2]
[357570339,1744181446163,-500.0,0.00019372,2]
[357570342,1744181446175,-500.0,0.00019372,2]
[357570344,1744181446185,-506.15737782,0.00019372,2]
[357570346,1744181446195,-565.66632643,0.00019372,2]
[357570349,1744181446204,-500.0,0.00019372,2]
[357570351,1744181446213,-505.35096088,0.00019372,2]
[357570352,1744181446222,-500.0,0.00019372,2]
[357570354,1744181446232,-503.26368296,0.00019372,2]
[357570356,1744181446241,-646.09041036,0.00019372,2]
[357570358,1744181446251,-507.66158463,0.00019372,2]
[357570359,1744181446260,-500.0,0.00019372,2]
[357570360,1744181446270,-505.74061445,0.00019372,2]
[357570361,1744181446279,-269.43083514,0.00019372,2]
[357570367,1744181446364,-500.0,0.00019372,2]
[357570368,1744181446375,-525.08030252,0.00019372,2]
[357570369,1744181446384,-500.0,0.00019372,2]
[357570370,1744181446394,-500.0,0.00019372,2]
[357570371,1744181446404,-500.0,0.00019372,2]
[357570372,1744181446414,-524.00148669,0.00019372,2]
[357570373,1744181446424,-471.30322616,0.00019372,2]
[357570374,1744181446434,-500.0,0.00019372,2]
[357570375,1744181446444,-500.0,0.00019372,2]
[357570376,1744181446454,-500.0,0.00019372,2]
[357570377,1744181446464,-514.08354451,0.00019372,2]
[357570378,1744181446474,-252.89678484,0.00019372,2]
[357570379,1744181446484,-545.62232805,0.00019372,2]
[357570380,1744181446496,-543.75164392,0.00019372,2]
[357570381,1744181446508,-537.0181007,0.00019372,2]
[357570382,1744181446518,-514.16233889,0.00019372,2]
[357570383,1744181446528,-575.05200895,0.00019372,2]
[357570384,1744181446538,-500.0,0.00019372,2]
[357570385,1744181446547,-500.0,0.00019372,2]
[357570386,1744181446563,-500.0,0.00019372,2]
[357570387,1744181446573,-518.69896368,0.00019372,2]
[357570388,1744181446583,-521.76482253,0.00019372,2]
[357570389,1744181446592,-500.0,0.00019372,2]
[357570390,1744181446602,-500.0,0.00019372,2]
[357570391,1744181446612,-500.0,0.00019372,2]
[357570392,1744181446621,-500.0,0.00019372,2]
[357570393,1744181446631,-500.0,0.00019372,2]
[357570394,1744181446640,-244.89062422,0.00019372,2]
[357570395,1744181446650,-535.92559425,0.00019372,2]
[357570396,1744181446660,-500.0,0.00019372,2]
[357570397,1744181446673,-513.41,0.00019372,2]
[357570398,1744181446682,-474.30779506,0.00019372,2]
[357570399,1744181446692,-500.0,0.00019372,2]
[357570400,1744181446702,-508.22941957,0.00019372,2]
[357570401,1744181446712,-514.11474739,0.00019372,2]
[357570402,1744181446722,-506.347588,0.00019372,2]
[357570403,1744181446734,-1037.99,0.00019372,2]
[357570404,1744181446744,-514.34124578,0.00019372,2]
[357570405,1744181446753,-500.0,0.00019372,2]
[357570406,1744181446763,-500.0,0.00019372,2]
[357570407,1744181446774,-500.0,0.00019372,2]
[357570408,1744181446784,-500.0,0.00019372,2]
[357570409,1744181446794,-500.0,0.00019372,2]
[357570410,1744181446804,-500.0,0.00019372,2]
[357570411,1744181446814,-500.0,0.00019372,2]
[357570412,1744181446823,-940.46,0.00019372,2]
[357570413,1744181446833,-500.0,0.00019372,2]
[357570414,1744181446843,-500.0,0.00019372,2]
[357570416,1744181446853,-500.0,0.00019372,2]
[357570417,1744181446863,-500.0,0.00019372,2]
[357570418,1744181446872,-500.0,0.00019372,2]
[357570420,1744181446882,-500.0,0.00019372,2]
[357570421,1744181446891,-500.0,0.00019372,2]
[357570422,1744181446900,-500.0,0.00019372,2]
[357570423,1744181446910,-500.0,0.00019372,2]
[357570424,1744181446924,-500.0,0.00019372,2]
[357570425,1744181446934,-500.0,0.00019373,2]
[357570426,1744181446944,-500.0,0.00019373,2]
[357570427,1744181446953,-500.0,0.00019373,2]
[357570428,1744181446963,-500.0,0.00019373,2]
[357570429,1744181446972,-500.0,0.00019373,2]
[357570430,1744181446982,-500.0,0.00019373,2]
[357570431,1744181446992,-500.0,0.00019373,2]
[357570432,1744181447002,-500.0,0.00019373,2]
[357570433,1744181447011,-500.0,0.00019373,2]
[357570434,1744181447021,-500.0,0.00019377,2]
[357570435,1744181447031,-3460.34,0.00019377,2]
[357570436,1744181447040,-500.0,0.00019377,2]
[357570437,1744181447051,-2456.33,0.00019377,2]
[357570438,1744181447060,-526.53995651,0.00019377,2]
[357570439,1744181447070,-938.94,0.00019377,2]
[357570440,1744181447079,-3005.67,0.00019377,2]
[357570441,1744181447089,-3005.67,0.00019377,2]
[357570442,1744181447100,-500.0,0.00019378,2]
[357570443,1744181447112,-500.0,0.00019378,2]
[357570444,1744181447122,-500.0,0.00019378,2]
[357570445,1744181447131,-3460.34,0.00019378,2]
[357570446,1744181447141,-3460.34,0.00019378,2]
[357570447,1744181447153,-3460.34,0.00019378,2]
[357570448,1744181447163,-500.0,0.00019378,2]
[357570449,1744181447175,-500.0,0.00019378,2]
[357570450,1744181447185,-500.0,0.00019378,2]
[357570451,1744181447195,-2456.33,0.00019378,2]
[357570452,1744181447204,-2456.33,0.00019378,2]
[357570454,1744181447214,-2456.33,0.00019378,2]
[357570456,1744181447223,-938.94,0.00019378,2]
[357570458,1744181447233,-938.94,0.00019378,2]
[357570460,1744181447242,-938.94,0.00019378,2]
[357570462,1744181447252,-3005.67,0.00019378,2]
[357570463,1744181447261,-3005.67,0.00019378,2]
[357570464,1744181447270,-3005.67,0.00019378,2]
[357570465,1744181447279,-3005.67,0.00019378,2]
[357570466,1744181447288,-3005.67,0.00019378,2]
[357570467,1744181447297,-3005.67,0.00019378,2]
[357570468,1744181447306,-3005.67,0.00019378,2]
[357570469,1744181447315,-3005.88355945,0.00019378,2]
[357570470,1744181447324,-500.0,0.00019379,2]
[357570471,1744181447333,-500.0,0.00019379,2]
[357570472,1744181447342,-500.0,0.00019379,2]
[357570473,1744181447351,-503.42378302,0.00019379,2]
[357570474,1744181447360,-502.97387527,0.00019379,2]
[357570475,1744181447369,-500.0,0.00019379,2]
[357570476,1744181447378,-500.0,0.00019379,2]
[357570477,1744181447387,-500.0,0.00019379,2]
[357570478,1744181447396,-500.0,0.00019379,2]
[357570479,1744181447405,-500.0,0.00019379,2]
[357570480,1744181447415,-512.53563059,0.00019379,2]
[357570481,1744181447424,-500.0,0.00019379,2]
[357570482,1744181447434,-500.0,0.00019379,2]
[357570483,1744181447443,-515.64625641,0.00019379,2]
[357570484,1744181447452,-501.79861939,0.00019379,2]
[357570485,1744181447462,-500.0,0.00019379,2]
[357570486,1744181447471,-500.0,0.00019379,2]
[357570488,1744181447481,-503.52391231,0.00019379,2]
[357570490,1744181447491,-494.89185551,0.00019379,2]
[357570492,1744181447500,-500.0,0.00019379,2]
[357570494,1744181447509,-500.0,0.00019379,2]
[357570496,1744181447519,-500.0,0.00019379,2]
[357570498,1744181447528,-500.0,0.00019379,2]
[357570499,1744181447538,-500.0,0.00019379,2]
[357570500,1744181447547,-504.77398225,0.00019379,2]
[357570501,1744181447557,-500.0,0.00019379,2]
[357570502,1744181447645,-500.0,0.00019379,2]
[357570503,1744181447655,-500.0,0.00019379,2]
[357570504,1744181447664,-500.0,0.00019379,2]
[357570505,1744181447675,-500.0,0.00019379,2]
[357570506,1744181447684,-500.0,0.00019379,2]
[357570507,1744181447694,-500.0,0.00019379,2]
[357570508,1744181447704,-314.45184982,0.00019379,2]
[357570509,1744181447714,-512.80004144,0.00019379,2]
[357570510,1744181447724,-500.0,0.00019379,2]
[357570511,1744181447733,-644.33095895,0.00019379,2]
[357570512,1744181447743,-500.0,0.00019379,2]
[357570513,1744181447753,-500.0,0.00019379,2]
[357570514,1744181447762,-500.0,0.00019379,2]
[357570515,1744181447771,-500.0,0.00019379,2]
[357570516,1744181447781,-500.0,0.00019379,2]
[357570517,1744181447791,-500.0,0.00019379,2]
[357570518,1744181447800,-500.0,0.00019379,2]
[357570519,1744181447811,-685.74,0.00019379,2]
[357570520,1744181447821,-500.0,0.00019379,2]
[357570521,1744181447831,-500.0,0.00019379,2]
[357570522,1744181447840,-501.9143169,0.00019379,2]
[357570523,1744181447850,-500.0,0.00019379,2]
[357570524,1744181447860,-500.0,0.00019379,2]
[357570525,1744181447874,-500.0,0.00019379,2]
[357570526,1744181447884,-500.0,0.00019379,2]
[357570527,1744181447893,-3460.34,0.00019379,2]
[357570528,1744181447903,-3460.34,0.00019379,2]
[357570529,1744181447913,-3460.34,0.00019379,2]
[357570530,1744181447924,-698.51,0.00019379,2]
[357570531,1744181447934,-500.0,0.00019379,2]
[357570532,1744181447943,-500.0,0.00019379,2]
[357570533,1744181447952,-501.24018834,0.00019379,2]
[357570534,1744181447962,-506.93440555,0.00019379,2]
[357570535,1744181447971,-500.0,0.00019379,2]
[357570536,1744181447981,-504.63837583,0.00019379,2]
[357570537,1744181447990,-500.0,0.00019379,2]
[357570538,1744181447999,-506.42574962,0.00019379,2]
[357570539,1744181448009,-500.0,0.00019379,2]
[357570540,1744181448020,-500.0,0.00019379,2]
[357570541,1744181448030,-500.0,0.00019379,2]
[357570542,1744181448039,-500.0,0.00019379,2]
[357570543,1744181448049,-500.0,0.00019379,2]
[357570544,1744181448059,-500.0,0.00019379,2]
[357570545,1744181448072,-500.0,0.00019379,2]
[357570546,1744181448082,-500.0,0.00019379,2]
[357570547,1744181448092,-500.0,0.00019379,2]
[357570548,1744181448103,-506.17149033,0.00019379,2]
[357570549,1744181448115,-500.0,0.00019379,2]
[357570550,1744181448125,-500.0,0.00019379,2]
[357570551,1744181448135,-500.0,0.00019379,2]
[357570552,1744181448147,-500.0,0.00019379,2]
[357570553,1744181448156,-515.20367755,0.00019379,2]
[357570554,1744181448166,-500.0,0.00019379,2]
[357570555,1744181448176,-1237.31,0.00019379,2]
[357570556,1744181448187,-500.0,0.00019379,2]
[357570557,1744181448197,-500.0,0.00019379,2]
[357570558,1744181448207,-979.63,0.00019379,2]
[357570559,1744181448217,-500.0,0.00019379,2]
[357570560,1744181448227,-865.38,0.00019379,2]
[357570561,1744181448237,-500.0,0.00019379,2]
[357570562,1744181448247,-500.0,0.00019379,2]
[357570563,1744181448256,-500.0,0.00019379,2]
[357570564,1744181448266,-2456.33,0.00019379,2]
[357570565,1744181448276,-2456.33,0.00019379,2]
[357570566,1744181448291,-2456.33,0.00019379,2]
[357570567,1744181448308,-500.0,0.00019379,2]
[357570568,1744181448323,-500.0,0.00019379,2]
[357570569,1744181448337,-882.97,0.00019379,2]
[357570570,1744181448348,-1122.6,0.00019379,2]
[357570571,1744181448359,-500.0,0.00019379,2]
[357570572,1744181448369,-500.0,0.00019379,2]
[357570573,1744181448379,-500.0,0.00019379,2]
[357570574,1744181448388,-500.0,0.00019379,2]
[357570575,1744181448398,-500.0,0.00019379,2]
[357570576,1744181448408,-500.0,0.00019379,2]
[357570577,1744181448419,-768.02,0.00019379,2]
[357570578,1744181448428,-500.0,0.00019379,2]
[357570579,1744181448439,-500.0,0.00019379,2]
[357570580,1744181448449,-997.5,0.00019379,2]
[357570581,1744181448458,-938.94,0.00019379,2]
[357570582,1744181448469,-938.94,0.00019379,2]
[357570583,1744181448479,-938.94,0.00019379,2]
[357570584,1744181448488,-500.0,0.00019379,2]
[357570585,1744181448498,-3723.04,0.00019379,2]
[357570586,1744181448508,-662.8,0.00019379,2]
[357570587,1744181448518,-519.1,0.00019379,2]
[357570588,1744181448527,-551.1,0.00019379,2]
[357570589,1744181448537,-500.0,0.0001938,2]
[357570590,1744181448547,-500.0,0.0001938,2]
[357570591,1744181448556,-500.0,0.0001938,2]
[357570592,1744181448566,-500.0,0.0001938,2]
[357570593,1744181448576,-500.0,0.0001938,2]
[357570594,1744181448586,-500.0,0.0001938,2]
[357570595,1744181448596,-500.0,0.0001938,2]
[357570596,1744181448606,-500.0,0.0001938,2]
[357570597,1744181448615,-503.95,0.0001938,2]
[357570598,1744181448625,-3460.34,0.0001938,2]
[357570599,1744181448635,-3460.34,0.0001938,2]
[357570600,1744181448644,-3460.34,0.0001938,2]
[357570601,1744181448654,-3460.34,0.0001938,2]
[357570602,1744181448664,-3460.34,0.0001938,2]
[357570603,1744181448674,-500.0,0.0001938,2]
[357570604,1744181448684,-500.0,0.0001938,2]
[357570605,1744181448694,-500.0,0.0001938,2]
[357570606,1744181448704,-500.0,0.0001938,2]
[357570607,1744181448713,-500.0,0.0001938,2]
[357570608,1744181448722,-1177.14,0.0001938,2]
[357570609,1744181448732,-2456.33,0.0001938,2]
[357570610,1744181448741,-2456.33,0.0001938,2]
[357570611,1744181448751,-2456.33,0.0001938,2]
[357570612,1744181448760,-2456.33,0.0001938,2]
[357570613,1744181448770,-2456.33,0.0001938,2]
[357570614,1744181448852,-938.94,0.0001938,2]
[357570615,1744181448863,-938.94,0.0001938,2]
[357570616,1744181448873,-938.94,0.0001938,2]
[357570617,1744181448883,-938.94,0.0001938,2]
[357570618,1744181448892,-938.94,0.0001938,2]
[357570619,1744181448902,-662.8,0.0001938,2]
[357570620,1744181448912,-662.8,0.0001938,2]
[357570621,1744181448923,-507.1921532,0.00019381,2]
[357570622,1744181448933,-500.0,0.00019381,2]
[357570623,1744181448943,-500.0,0.00019381,2]
[357570624,1744181448952,-500.0,0.00019381,2]
[357570625,1744181448962,-500.0,0.00019381,2]
[357570626,1744181448972,-500.0,0.00019381,2]
[357570627,1744181448982,-500.0,0.00019381,2]
[357570628,1744181448997,-576.75972219,0.00019381,2]
[357570629,1744181449012,-3460.34,0.00019381,2]
[357570630,1744181449026,-3460.34,0.00019381,2]
[357570631,1744181449037,-3460.34,0.00019381,2]
[357570632,1744181449051,-3460.34,0.00019381,2]
[357570633,1744181449060,-3460.5675469,0.00019381,2]
[357570634,1744181449070,-291.17223209,0.00019381,2]
[357570635,1744181449080,-1177.14,0.00019381,2]
[357570636,1744181449089,-1177.14,0.00019381,2]
[357570637,1744181449100,-1177.14,0.00019381,2]
[357570638,1744181449113,-1177.14,0.00019381,2]
[357570639,1744181449123,-1177.14,0.00019381,2]
[357570640,1744181449133,-2456.33,0.00019381,2]
[357570641,1744181449143,-2456.33,0.00019381,2]
[357570642,1744181449153,-2456.33,0.00019381,2]
[357570643,1744181449163,-2456.33,0.00019381,2]
[357570645,1744181449173,-2456.54623879,0.00019381,2]
[357570646,1744181449184,-938.94,0.00019381,2]
[357570647,1744181449194,-938.94,0.00019381,2]
[357570648,1744181449204,-938.94,0.00019381,2]
[357570649,1744181449214,-938.94,0.00019381,2]
[357570651,1744181449225,-939.13616988,0.00019381,2]
[357570652,1744181449235,-662.8,0.00019381,2]
[357570653,1744181449245,-662.8,0.00019381,2]
[357570654,1744181449255,-662.8,0.00019381,2]
[357570656,1744181449265,-662.8,0.00019381,2]
[357570657,1744181449276,-662.8,0.00019381,2]
[357570658,1744181449286,-662.8,0.00019381,2]
[357570659,1744181449295,-507.74719483,0.00019382,2]